Cogmind - Beta 12 @@@ ROGUE MODE // 2023.04.05 @ 18:04:58 Player: Mr Goldstein Result: Destroyed by as-44588 with Assembled Maul Performance ------------- Evolutions (0) 0 Regions Visited (3) 600 Robots Destroyed (24) 120 Value Destroyed (403) 403 Prototype IDs (29) 580 Alien Tech Used (0) 0 Bonus (76) 76 TOTAL SCORE: 1779 Bonus ------- Aligned with FarCom 300 Friendly Fire -224 Cogmind --------- Core Integrity 0/250 Matter 260/300 Energy 169/300 System Corruption 15% Temperature Cool (0) Movement Rolling (155) Ox5 Location -10/Exiles Parts ------- > --- POWER (1) -------- (None) > --- PROPULSION (2) --- Wheel > --- UTILITY (2) ------ High-capacity Storage Unit Large Battery > --- WEAPON (2) ------- Latent Energy Streamer > --- INVENTORY (20) --- Wheel Wheel Wheel Compact Wheel Heat Sink Heat Sink Improved Heat Sink Large Battery (200) Medium Matter Pod (0) Medium Laser Medium Laser Small Laser Particle Gun Beam Cannon Rocket Launcher Peak State ------------ > --- POWER ------------ Light Ion Engine > --- PROPULSION ------- Wheel Wheel > --- UTILITY ---------- High-capacity Storage Unit > --- WEAPON ----------- Latent Energy Streamer Light Assault Rifle > --- INVENTORY -------- Wheel Wheel Wheel Compact Wheel Heat Sink Heat Sink Improved Heat Sink Large Battery Large Battery Medium Matter Pod Medium Laser Medium Laser Small Laser Particle Gun Beam Cannon Rocket Launcher [Rating: 17] Favorites ----------- Power Light Ion Engine Engine Light Ion Engine Propulsion Wheel Wheel Wheel Utility High-capacity Storage Unit Storage High-capacity Storage Unit Protection Weapon Shielding Weapon Light Assault Rifle Energy Gun Particle Gun Energy Cannon Latent Energy Streamer Ballistic Gun Light Assault Rifle Launcher Grenade Launcher Build | -11 -10 -10 -10 ------- Run | Jun Mat Min Exi Slots Evolved . | . . . . Power . | . . . . Propulsion . | . . . . Utility . | . . . . Weapon . | . . . . Parts Attached 22 | 7 6 7 2 Power 3 | 1 1 1 . Engine 3 | 1 1 1 . Core . | . . . . Reactor . | . . . . Propulsion 3 | 2 . 1 . Treads . | . . . . Leg . | . . . . Wheel 3 | 2 . 1 . Hover . | . . . . Flight . | . . . . Utility 4 | 1 2 . 1 Device . | . . . . Storage 3 | 1 1 . 1 Processor . | . . . . Hackware . | . . . . Protection 1 | . 1 . . Artifact . | . . . . Weapon 12 | 3 3 5 1 Energy Gun 4 | 2 1 1 . Energy Cannon 1 | . . . 1 Ballistic Gun 5 | 1 2 2 . Ballistic Cannon . | . . . . Launcher 2 | . . 2 . Special Weapon . | . . . . Impact Weapon . | . . . . Slashing Weapon . | . . . . Piercing Weapon . | . . . . Special Melee Weapon . | . . . . Unidentified Prototypes . | . . . . Parts Lost 8 | . 1 5 2 Power 3 | . 1 1 1 Propulsion 2 | . . 1 1 Utility 1 | . . 1 . Weapon 2 | . . 2 . Highest Loss Streak 4 | . 1 4 2 To Critical Strikes . | . . . . Average Slot Usage (%) 89 | . 93 88 87 Engine 11 | . 8 11 13 Wheel 26 | . 28 24 27 Storage 15 | . 14 14 16 Protection 6 | . 13 9 . Energy Gun 7 | . 10 4 6 Energy Cannon 3 | . . . 7 Ballistic Gun 17 | . 17 22 13 Naked Turns . | . . . . Heaviest Build 57 | 11 47 48 57 Greatest Support 26 | 26 26 26 20 Greatest Overweight (x) 4 | . 1 4 2 Average Overweight (x) 1 | . . 1 2 Largest Inventory Capacity 20 | 8 20 20 20 Average Capacity 17 | 6 11 20 20 Most Carried 16 | 5 11 15 16 Average Carried 11 | 2 5 13 14 Final Capacity 20 | 8 20 20 20 Final Carried 15 | 2 11 13 15 Class Distribution -------------------- 100% | Mutant Dominant Class ---------------- Mutant | -10/Materials Mutant | -10/Mines Mutant | -10/Exiles Resources | -11 -10 -10 -10 ----------- Run | Jun Mat Min Exi Matter Collected 462 | 234 108 101 19 Remotely . | . . . . Salvage Created 763 | . 480 171 112 Parts 46 | . 25 16 5 Haulers Intercepted 1 | . 1 . . Recyclers Shooed 2 | . 1 1 . Parts Field Recycled . | . . . . Retrieved Matter . | . . . . Parts Self-Destructed . | . . . . Prevented . | . . . . Kills | -11 -10 -10 -10 ------- Run | Jun Mat Min Exi Combat Hostiles Destroyed 18 | . 6 9 3 Guns 11 | . 6 5 . AOE 7 | . . 4 3 Classes Destroyed 8 | . 6 . 2 Worker 2 | . 2 . . Tunneler 1 | . 1 . . Hauler 1 | . 1 . . Recycler 2 | . 2 . . Swarmer 8 | . 2 6 . Grunt 7 | . 4 3 . Zionite 3 | . . . 3 Assembled 3 | . . . 3 Best Kill Streak 4 | . 4 3 4 Combat Bots Only 3 | . 2 3 3 Max Kills in Single Turn 3 | . 1 2 3 Gunslinging . | . . . . Exploded 3 | . . 2 3 Melee . | . . . . Uniques/NPCs Destroyed . | . . . . Combat | -11 -10 -10 -10 -------- Run | Jun Mat Min Exi Damage Taken 850 | . 284 335 231 Core 262 | . 65 109 88 Absorbed by Shields . | . . . . Redirected to Shielding 52 | . 31 21 . Core Remaining (%) 100 | 100 . . . Volleys Fired 69 | . 38 22 9 Largest 2 | . 2 2 2 Hottest 100 | . 100 85 80 Shots Fired 129 | . 76 42 11 Gun 122 | . 76 38 8 Cannon 3 | . . . 3 Launcher 4 | . . 4 . Special . | . . . . Kinetic 82 | . 39 35 8 Thermal 40 | . 37 3 . Explosive 4 | . . 4 . Electromagnetic 3 | . . . 3 Robot Hit Streak 9 | . 9 7 3 Robot Miss Streak 5 | . 5 4 3 Penetration Max . | . . . . Secondary Targets 1 | . . 1 . Max Gunslinging Chain 1 | . . 1 . Shots Hit Robots 76 | . 48 22 6 Core Hits 42 | . 23 13 6 Critical Kills 2 | . 1 1 . Critical Parts Destroyed . | . . . . Critical Strikes 8 | . 6 2 . Burn 6 | . 5 1 . Destroy 2 | . 1 1 . Melee Attacks . | . . . . Impact . | . . . . Slashing . | . . . . Piercing . | . . . . Sneak Attacks . | . . . . Combat Hostiles . | . . . . Follow-up Attacks . | . . . . Damage Inflicted 1425 | . 498 400 527 Guns 728 | . 498 182 48 Cannons . | . . . . Explosions 697 | . . 218 479 Melee . | . . . . Ramming . | . . . . Kinetic 401 | . 207 146 48 Thermal 327 | . 291 36 . Explosive 218 | . . 218 . Electromagnetic 479 | . . . 479 Impact . | . . . . Slashing . | . . . . Piercing . | . . . . Highest Corruption 15 | . . . 15 Average Corruption 6 | . . . 6 Corruption Purged . | . . . . Corruption Blocked . | . . . . Effects 2 | . . . 2 Message Errors 1 | . . . 1 Heat Flow Errors 1 | . . . 1 Overload Shots . | . . . . Overflow Damage 20 | . . 20 . Projectiles . | . . . . Explosions 20 | . . 20 . Melee . | . . . . Knockbacks . | . . . . Impact . | . . . . Kinetic . | . . . . Secondary . | . . . . Self-Inflicted Damage 6 | . . 6 . Shots 2 | . . 2 . Rammed . | . . . . Targets Rammed . | . . . . Kicked . | . . . . Crushed . | . . . . Highest Temperature 304 | . 304 95 301 Average Temperature 97 | . 113 26 117 Received Heat Transfer 290 | . 129 141 20 Effects 2 | . 1 . 1 Interference 1 | . 1 . . Short Circuit 1 | . . . 1 Siege Activations . | . . . . Robots Corrupted . | . . . . Combat Hostiles . | . . . . Parts Fried . | . . . . Impact Corruptions . | . . . . Robots Melted . | . . . . Combat Hostiles . | . . . . Parts Melted 2 | . 2 . . Heat Transferred 1369 | . 1221 148 . Parts Sabotaged . | . . . . Parts Stolen . | . . . . Parts Stripped . | . . . . Power Chain Reactions . | . . . . Missiles Intercepted . | . . . . Latent Energy Used 600 | . . . 600 LE Corruption 9 | . . . 9 Alert | -11 -10 -10 -10 ------- Run | Jun Mat Min Exi Peak Influence 245 | . 245 234 . Initial 33 | . . 33 . Average 111 | . 110 125 . Maximum Alert Level 1 | . 1 1 . Low Security (%) 79 | 100 83 73 . Level 1 20 | . 16 26 . Level 2 . | . . . . Level 3 . | . . . . Level 4 . | . . . . Level 5 . | . . . . High Security . | . . . . Max Security . | . . . . Squads Dispatched . | . . . . Investigation . | . . . . Extermination . | . . . . Reinforcement . | . . . . Assault . | . . . . Garrison . | . . . . Intercept . | . . . . Searches Triggered . | . . . . Construction Impeded . | . . . . Haulers Reinforced . | . . . . Active Scanning Responses . | . . . . Cargo Convoy Interrupts . | . . . . Stealth | -11 -10 -10 -10 --------- Run | Jun Mat Min Exi Distress Signals 1 | . 1 . . Communications Jammed . | . . . . Distress Signals . | . . . . Times Spotted 32 | . 10 10 12 Peak Tracking Total 11 | . 3 3 11 Tactical Retreats 2 | . 1 . 1 Traps | -11 -10 -10 -10 ------- Run | Jun Mat Min Exi Traps Triggered . | . . . . Indirectly . | . . . . Trap Hack Attempts . | . . . . Triggered . | . . . . Disarmed . | . . . . Reprogrammed . | . . . . Reused . | . . . . Traps Extracted . | . . . . Installed . | . . . . Triggered . | . . . . Machines | -11 -10 -10 -10 ---------- Run | Jun Mat Min Exi Machines Disabled 7 | . . . 7 Max in Single Turn 5 | . . . 5 Machines Repaired . | . . . . Machines Sabotaged . | . . . . Overloaded Fab Kills . | . . . . Hacking | -11 -10 -10 -10 --------- Run | Jun Mat Min Exi Machines Accessed 5 | . 4 . 1 Terminals 4 | . 4 . . Fabricators . | . . . . Repair Stations . | . . . . Recycling Units . | . . . . Scanalyzers . | . . . . Garrison Access . | . . . . Total Hacks 14 | . 13 . 1 Successful 11 | . 10 . 1 Failed 3 | . 3 . . Catastrophic . | . . . . Database Lockouts . | . . . . Manual 1 | . . . 1 Terminals 13 | . 13 . . Fabricators . | . . . . Repair Stations . | . . . . Recycling Units . | . . . . Scanalyzers . | . . . . Garrison Access . | . . . . Terminal Hacks 11 | . 10 . 1 Prototype ID Bank 3 | . 3 . . Emergency Access Points 1 | . 1 . . Locate Traps 1 | . 1 . . Dispatch Records 1 | . 1 . . Patrol Status 1 | . 1 . . Registered Components 1 | . 1 . . Zone Layout 2 | . 2 . . EX-Prototype ID Bank 1 | . . . 1 Fabricator Hacks . | . . . . Repair Station Hacks . | . . . . Recycling Unit Hacks . | . . . . Scanalyzer . | . . . . Garrison Access Hacks . | . . . . Unauthorized Hacks . | . . . . Terminals . | . . . . Fabricators . | . . . . Repair Stations . | . . . . Recycling Units . | . . . . Scanalyzers . | . . . . Garrison Access . | . . . . Data Cores Recovered . | . . . . Used . | . . . . Hacking Detections 4 | . 4 . . Full Trace Events . | . . . . Feedback Events . | . . . . Feedback Blocked . | . . . . Robot Schematics Acquired . | . . . . Robots Built . | . . . . Authchips . | . . . . Time . | . . . . Total Robot Build Rating . | . . . . Part Schematics Acquired . | . . . . Parts Built . | . . . . Authchips . | . . . . Time . | . . . . Total Part Build Rating . | . . . . Parts Repaired . | . . . . Time . | . . . . Parts Recycled . | . . . . Recycled Matter . | . . . . Retrieved Matter . | . . . . Retrieved Components . | . . . . Parts Scanalyzed . | . . . . Part Schematics Acquired . | . . . . Parts Damaged . | . . . . Bothacking | -11 -10 -10 -10 ------------ Run | Jun Mat Min Exi Used RIF Installer . | . . . . Robots Hacked . | . . . . Non-combat . | . . . . Combat . | . . . . Robot Hacks Applied . | . . . . Relay Couplers Released . | . . . . Fabnet Peak Effective % . | . . . . Robots Rewired . | . . . . Allies Hacked . | . . . . Hacks Repelled . | . . . . Allies | -11 -10 -10 -10 -------- Run | Jun Mat Min Exi Total Allies 3 | . . 3 . Largest Group 3 | . . 3 3 Highest-Rated Group 40 | . . 40 40 Highest-Rated Ally 16 | . . 16 16 Total Orders . | . . . . Ally Attacks 16 | . . . 16 Total Damage 137 | . . . 137 Kills 3 | . . . 3 Allies Corrupted . | . . . . Allies Melted . | . . . . Intel | -11 -10 -10 -10 ------- Run | Jun Mat Min Exi Robot Analysis Total . | . . . . Derelict Logs Recovered 1 | . . 1 . Drone Launches . | . . . . Drone Recoveries . | . . . . Exploration | -11 -10 -10 -10 ------------- Run | Jun Mat Min Exi Turns Passed 1981 | 61 532 544 844 Spaces Moved 1504 | 59 311 412 722 Core 17 | 17 . . . Treads . | . . . . Legs . | . . . . Wheels 1487 | 42 311 412 722 Hover . | . . . . Flight . | . . . . Fastest Speed 50 | 50 90 105 110 Average Speed 106 | 78 96 112 110 Slowest Speed 140 | 90 105 140 110 Overloaded Moves . | . . . . Propulsion Burnouts . | . . . . Robots Hopped . | . . . . Cave-ins Triggered . | . . . . Exploration Rate (%) 55 | 4 59 72 86 Regions Visited 3 Branch Regions 2 Pre-discovered Areas . | . . . . Known Exits Taken . | . . . . Unknown Exits Taken 3 | 1 1 1 . Scrap Searched 1 | . . 1 . Spaces Dug 10 | . . 10 . Terrain Destroyed 80 | . . 31 49 Melee . | . . . . Projectile . | . . . . AOE 80 | . . 31 49 Terrain Rammed . | . . . . Walls Destroyed . | . . . . Machines Disabled . | . . . . Actions | -11 -10 -10 -10 --------- Run | Jun Mat Min Exi Total 1763 | 73 473 455 762 Wait 138 | . 104 9 25 Move 1501 | 58 310 411 722 Hop . | . . . . Pick Up 30 | 8 13 6 3 Fast Attach . | . . . . Attach 13 | 6 2 4 1 Detach . | . . . . Swap 9 | 1 4 3 1 Drop 3 | . 2 . 1 Fire 69 | . 38 22 9 Melee . | . . . . Ram . | . . . . Kick . | . . . . Crush . | . . . . Escape Stasis . | . . . . Rewire . | . . . . Trap . | . . . . Miscellaneous . | . . . . Route ------- -11/Junkyard -10/Materials (discovered 2 exits: [*Mat] / [*Min]) -10/Mines (discovered 2 exits: [*Mat] / *Exi) -10/Exiles History --------- Turn | Location | Event 23 | -11/Junkyard | Discovered new exit (range 16) 62 | -11/Junkyard | Entered Materials 307 | -10/Materials | Build established: Mutant 444 | -10/Materials | Discovered new exit (range 15) 562 | -10/Materials | Discovered new exit (range 7) 594 | -10/Materials | Entered Mines 690 | -10/Mines | Learned Materials emergency access door positions 705 | -10/Mines | Received a Rocket Launcher from a helpful Derelict 800 | -10/Mines | A weapon hastily lodged in a ceiling crevice suddenly fell to the ground 893 | -10/Mines | Discovered new exit (range 8) 949 | -10/Mines | Core integrity fell below 50% 981 | -10/Mines | Lost 4 parts (1p1n1u1w) 1098 | -10/Mines | Assisted by bots powering up and referring to "LRC-V3" 1128 | -10/Mines | Deemed a non-threat by the Exiles lab entrance 1128 | -10/Mines | Discovered new exit (range 5) 1138 | -10/Mines | Entered Exiles 1138 | -10/Exiles | Accompanied by 3 allies 1168 | -10/Exiles | Met 8R-AWN 1182 | -10/Exiles | Met EX-HEX 1217 | -10/Exiles | Met EX-BIN 1261 | -10/Exiles | Aligned with FarCom system 1263 | -10/Exiles | Given EX-Vault access code 1288 | -10/Exiles | Opened EX-Vault 1301 | -10/Exiles | Found Latent Energy Streamer 1325 | -10/Exiles | Warned to stay clear of 0b10 Research branches 1353 | -10/Exiles | Met EX-DEC 1392 | -10/Exiles | Visited The Gauntlet 1939 | -10/Exiles | Attacked by the Exiles 1977 | -10/Exiles | Core integrity fell below 20% 1977 | -10/Exiles | System corruption reached 10% 1982 | -10/Exiles | Destroyed by as-44588 with Assembled Maul Last Messages --------------- 01952_ ZX-C33 destroyed. 01961_ Machine disabled. 01963_ as-31107 destroyed. 01963_ as-17745 destroyed. 01963_ as-91155 destroyed. 01963_ Machine disabled. 01964_ Trooper 1a destroyed. 01965_ System corrupted: Heat flow error (+261). 01966_ Lgt. Assault Rifle broken. 01966_ Overheating: Short circuit. 01966_ Trooper 1b destroyed. 01966_ Dropped Broken Lgt. Assault Rifle. 01968_ Mercenary 1a destroyed. 01972_ Acquired 19 matter. 01976_ Wheel destroyed. 01976_ Lgt. Ion Engine destroyed. 01976_ System corrupted by crushing effect (+5). 01976_ System corrupted by crushing effect (+1). 01979_ Machine disabled. 01981_ XZIKY7LAIMX2RQPZ4X2MY9XRIW Map ----- +----------------------------------------------------+ | ???????????????????????????????#"" " | | ???????????????????????????????#" """" | | ???????????????????????????????#""" """ | | ???????????????????????????????## ""# | | ????????????????????????????????#"" """## | | ????????????????????????????????##""" ##? | | ?????????????????????????????????##"""" ##?? | | ??????????????????????????????????### #??? | | ????????????????????????????????????##### ##??? | | ????????????????????????????????????????## #???? | | ?????????????????????????????????????????# #???? | | ?????????????????????????????????????????# #???? | | ?????????????????????????????????????????# #???? | | ??????????####??????????????????###??????# #???? | | ????????#"""""????????"""""???#"""""?????# #???? | | ?????????"" ??????"""""""????"""""""???# #???? | | ????????#" ?????"""""" "#??#" """"#### #???? | | ?????????"" ??#""#""" """????"" """# # #???? | | ?????????"" ??#""#"" ""????"" " ; " #???? | | ?????######"""###""###"""########""";;;""" "#### | | ???#"""" "" """"""" """""""" """ | | ???#" """""" """"""" =% c % ! | | ????""" *% % az % | | ????"""" =%= % | | ???#"" a [! = | | ???#""" "" @a =% " %= | | ???#"" """ """""" a""""" " """" * | | ????#######"""########"""###""###"""########"""""" | | ?????????"" ??????"" ""#""#"" ""?????" " " | | ?????????""" "?????#""" ""#""#""" ""#????" """# | | ????????#" """?????#" """"""""#" " "#????""""""# | | ?????????"""""?????#"""""""#""#"""""""#????" """"? | | ???????????""???????"""""""????"""""""#????""""??? | | ?????????????????????????????????####???????#????? | | ?????????????????????????????????????????????????? | | ?????????????????????????????????????????????????? | | ?????????????????????????????????????????????????? | | ?????????????????????????????????????????????????? | | | | | | | | | | | | | | | | | | | | | | | | | +----------------------------------------------------+ Best States ------------- Heat Dissipation 25 Energy Generation 10 Energy Capacity 325 Matter Stores 300 Matter Capacity 300 Sight Range 16 Terrain Scan Density 10 Weapon Shielding 33 Evasion (%) 50 Item Schematics ----------------- None Robot Schematics ------------------ None Fabricated ------------ Nothing Alien Tech Used ----------------- None Achievements -------------- None Challenges ------------ None Game ------ Seed AlertEnhancedCanceller Manual? 0 Play Time 00:16:20 Cumulative 73.7 hours Start 2023.04.05 @ 17:48:33 End 2023.04.05 @ 18:04:58 Sessions 1 Manual Loads 0 Difficulty Rogue Special Mode None Game No. 97 Rogue 97 Adventurer 0 Explorer 0 Win Type - Total 0 Types 0/0/0/0/0/0/0/0/0 Lore% 46 Gallery% 46 Achievement% 40 Wizard Run 0 Options --------- ASCII 0 Keyboard 0 Movement Arrows Keybinds 0 Fullscreen 1 Font 12/Smallcaps Map View 83x54 Tactical HUD 1 Map Filters NONE Filters NONE Steam 1 RUN: fb18c856-da6a-408b-b88a-ae4bef7f0fcf